Cogmind - Beta 15 @@@ ROGUE MODE // 2025.06.27 @ 19:34:06 Player: CaramelizedRodent Result: Destroyed by G-34 Mercenary with Small Laser Performance ------------- Evolutions (0) 0 Regions Visited (1) 200 Robots Destroyed (8) 40 Value Destroyed (200) 200 Prototype IDs (0) 0 Alien Tech Used (0) 0 Bonus (0) 0 TOTAL SCORE: 440 Bonus ------- None Cogmind --------- Core Integrity 0/250 Matter 300/300 Energy 100/100 System Corruption 0% Temperature Cool (6) Movement Flying (850) Ox10 Location -10/Materials Parts ------- > --- POWER (1) -------- (None) > --- PROPULSION (2) --- Aluminum Leg Flight Unit > --- UTILITY (2) ------ High-capacity Storage Unit Seismic Detector > --- WEAPON (2) ------- (None) > --- INVENTORY (20) --- Aluminum Leg Aluminum Leg Aluminum Leg Aluminum Leg Peak State ------------ > --- POWER ------------ Light Ion Engine > --- PROPULSION ------- Wheel Wheel > --- UTILITY ---------- High-capacity Storage Unit Seismic Detector > --- WEAPON ----------- EM Pulse Gun Assault Rifle > --- INVENTORY -------- Aluminum Leg Aluminum Leg EM Pulse Gun [Rating: 7] Favorites ----------- Power Light Ion Engine Engine Light Ion Engine Propulsion Wheel Leg Aluminum Leg Wheel Wheel Flight Unit Flight Unit Utility High-capacity Storage Unit Device Seismic Detector Storage High-capacity Storage Unit Weapon EM Pulse Gun Energy Gun EM Pulse Gun Ballistic Gun Assault Rifle Build | -11 -10 ------- Run | Yrd Mat Slots Evolved . | . . Power . | . . Propulsion . | . . Utility . | . . Weapon . | . . Parts Attached 13 | 5 8 Power 1 | 1 . Engine 1 | 1 . Core . | . . Reactor . | . . Propulsion 6 | 2 4 Treads . | . . Leg 3 | . 3 Wheel 2 | 2 . Hover . | . . Flight 1 | . 1 Utility 2 | . 2 Device 1 | . 1 Storage 1 | . 1 Processor . | . . Hackware . | . . Protection . | . . Artifact . | . . Weapon 4 | 2 2 Energy Gun 3 | 1 2 Energy Cannon . | . . Ballistic Gun 1 | 1 . Ballistic Cannon . | . . Launcher . | . . Special Weapon . | . . Impact Weapon . | . . Slashing Weapon . | . . Piercing Weapon . | . . Special Melee Weapon . | . . Unidentified Prototypes . | . . Parts Lost 9 | . 9 Power 1 | . 1 Propulsion 4 | . 4 Utility . | . . Weapon 4 | . 4 Highest Loss Streak 6 | . 6 To Critical Strikes . | . . Average Backups 2 | 2 3 Power . | . . Propulsion 2 | 1 2 Utility . | . . Weapon . | . . Tool/Special . | . . Unused Backups 3 | . 3 Power . | . . Propulsion 3 | . 3 Utility . | . . Weapon . | . . Tool/Special . | . . Average Slot Usage (%) 74 | . 74 Engine 5 | . 5 Leg 12 | . 12 Wheel 12 | . 12 Flight 1 | . 1 Device 10 | . 10 Storage 12 | . 12 Energy Gun 11 | . 11 Ballistic Gun 6 | . 6 Peak Build Rating 7 | 5 7 Average Rating 4 | 3 5 On Entrance 2 | . 5 Naked Turns . | . . Heaviest Build 48 | 7 48 Greatest Support 20 | 20 20 Greatest Overweight (x) 10 | . 10 Average Overweight (x) . | . 1 Largest Inventory Capacity 20 | 5 20 Average Capacity 15 | 5 19 Most Carried 6 | 5 6 Average Carried 3 | 2 3 Final Capacity 20 | 5 20 Final Carried 4 | 3 4 Class Distribution -------------------- 100% | Mutant Dominant Class ---------------- Mutant | -10/Materials Resources | -11 -10 ----------- Run | Yrd Mat Matter Collected 358 | 268 90 Remotely . | . . Salvage Created 265 | 39 226 Parts 13 | . 13 Haulers Intercepted . | . . Recyclers Shooed 1 | . 1 Parts Field Recycled . | . . Retrieved Matter . | . . Parts Self-Destructed . | . . Prevented . | . . Kills | -11 -10 ------- Run | Yrd Mat Combat Hostiles Destroyed 8 | 1 7 Guns 8 | 1 7 Classes Destroyed 2 | 1 1 Swarmer 3 | . 3 Grunt 5 | 1 4 Best Kill Streak 3 | 1 3 Combat Bots Only 3 | 1 3 Max Kills in Single Turn 1 | 1 1 Gunslinging . | . . Exploded . | . . Melee . | . . Uniques/NPCs Destroyed . | . . Combat | -11 -10 -------- Run | Yrd Mat Hostile Shots Fired 144 | 7 137 Missed 38 | 1 37 Hits 106 | 6 100 Projectile 106 | 6 100 Damage Taken 994 | 66 928 Core 254 | 10 244 Absorbed by Shields . | . . Core Remaining (%) 96 | 96 . Volleys Fired 38 | 6 32 Largest 2 | 2 2 Hottest 60 | 60 60 Shots Fired 53 | 12 41 Gun 53 | 12 41 Cannon . | . . Launcher . | . . Special . | . . Kinetic 17 | 6 11 Thermal 11 | . 11 Explosive . | . . Electromagnetic 25 | 6 19 Robot Hit Streak 9 | 9 8 Robot Miss Streak 5 | 1 5 Penetration Max . | . . Secondary Targets 1 | . 1 Max Gunslinging Chain 1 | . 1 Shots Hit Robots 32 | 9 23 Core Hits 13 | 2 11 Critical Kills . | . . Critical Parts Destroyed . | . . Critical Strikes 1 | . 1 Corrupt 1 | . 1 Melee Attacks . | . . Impact . | . . Slashing . | . . Piercing . | . . Sneak Attacks . | . . Combat Hostiles . | . . Follow-up Attacks . | . . Damage Inflicted 424 | 114 310 Guns 424 | 114 310 Cannons . | . . Explosions . | . . Melee . | . . Ramming . | . . Kinetic 152 | 65 87 Thermal 77 | . 77 Explosive . | . . Electromagnetic 195 | 49 146 Impact . | . . Slashing . | . . Piercing . | . . Highest Corruption . | . . Average Corruption . | . . Corruption Purged . | . . Corruption Blocked . | . . Overload Shots . | . . Overflow Damage . | . . Projectiles . | . . Explosions . | . . Melee . | . . Knockbacks . | . . Impact . | . . Kinetic . | . . Secondary . | . . Self-Inflicted Damage . | . . Shots . | . . Rammed . | . . Targets Rammed . | . . Kicked . | . . Crushed . | . . Highest Temperature 36 | 36 24 Average Temperature 13 | 25 7 Received Heat Transfer 318 | 36 282 Siege Activations . | . . Martial Activations . | . . Shielding Activations . | . . Robots Disrupted . | . . Combat Hostiles . | . . Robots Corrupted . | . . Combat Hostiles . | . . Parts Fried . | . . Impact Corruptions . | . . Robots Melted . | . . Combat Hostiles . | . . Parts Melted . | . . Heat Transferred 175 | . 175 Parts Sabotaged . | . . Parts Stolen . | . . Parts Stripped . | . . Power Chain Reactions . | . . Alert | -11 -10 ------- Run | Yrd Mat Maximum Alert Level . | . . Low Security (%) 100 | 100 100 Level 1 . | . . Level 2 . | . . Level 3 . | . . Level 4 . | . . Level 5 . | . . High Security . | . . Max Security . | . . Peak Influence 65 | 20 65 Initial 13 | . 13 Average 19 | 3 26 Influence Increases 230 | 20 210 Destroy 0b10 Robot/C 160 | 20 140 Destroy Leader 20 | . 20 Successful Hack 5 | . 5 Lose Combat Pursuer 45 | . 45 Influence Decreases 185 | . 185 Entered New Map 7 | . 7 Time Decay 98 | . 98 Lost Part 80 | . 80 Squads Dispatched 3 | . 3 Investigation 2 | . 2 Extermination . | . . Reinforcement 1 | . 1 Assault . | . . Garrison . | . . Intercept . | . . Searches Triggered . | . . Construction Impeded . | . . Haulers Reinforced . | . . Active Scanning Responses . | . . Cargo Convoy Interrupts . | . . Stealth | -11 -10 --------- Run | Yrd Mat Distress Signals 2 | . 2 Communications Jammed . | . . Distress Signals . | . . Times Spotted 17 | 1 16 Peak Tracking Total 7 | 1 7 Tactical Retreats 3 | . 3 Traps | -11 -10 ------- Run | Yrd Mat Traps Triggered . | . . Indirectly . | . . Trap Hack Attempts . | . . Triggered . | . . Disarmed . | . . Reprogrammed . | . . Reused . | . . Traps Extracted . | . . Installed . | . . Triggered . | . . Machines | -11 -10 ---------- Run | Yrd Mat Machines Disabled . | . . Max in Single Turn . | . . Machines Repaired . | . . Machines Dismantled . | . . Machines Sabotaged . | . . Overloaded Fab Kills . | . . Hacking | -11 -10 --------- Run | Yrd Mat Machines Accessed 2 | . 2 Terminals 2 | . 2 Fabricators . | . . Repair Stations . | . . Recycling Units . | . . Scanalyzers . | . . Garrison Access . | . . Total Hacks 5 | . 5 Successful 4 | . 4 Failed 1 | . 1 Catastrophic . | . . Database Lockouts . | . . Manual 1 | . 1 Terminals 5 | . 5 Fabricators . | . . Repair Stations . | . . Recycling Units . | . . Scanalyzers . | . . Garrison Access . | . . Terminal Hacks 4 | . 4 Record 3 | . 3 Alert Level 1 | . 1 Fabricator Hacks . | . . Repair Station Hacks . | . . Recycling Unit Hacks . | . . Scanalyzer . | . . Garrison Access Hacks . | . . Unauthorized Hacks . | . . Terminals . | . . Fabricators . | . . Repair Stations . | . . Recycling Units . | . . Scanalyzers . | . . Garrison Access . | . . Data Cores Recovered . | . . Used . | . . Hacking Detections 2 | . 2 Full Trace Events 2 | . 2 Feedback Events . | . . Feedback Blocked . | . . Robot Schematics Acquired . | . . Robots Built . | . . Authchips . | . . Time . | . . Total Robot Build Rating . | . . Part Schematics Acquired . | . . Parts Built . | . . Authchips . | . . Time . | . . Total Part Build Rating . | . . Parts Repaired . | . . Time . | . . Parts Recycled . | . . Recycled Matter . | . . Retrieved Matter . | . . Retrieved Components . | . . Parts Scanalyzed . | . . Part Schematics Acquired . | . . Parts Damaged . | . . Bothacking | -11 -10 ------------ Run | Yrd Mat Used RIF Installer . | . . Robots Hacked . | . . Non-combat . | . . Combat . | . . Robot Hacks Applied . | . . Relay Couplers Released . | . . Fabnet Peak Effective % . | . . Robots Rewired . | . . Allies Hacked . | . . Hacks Repelled . | . . Allies | -11 -10 -------- Run | Yrd Mat Total Allies . | . . Largest Group . | . . Highest-Rated Group . | . . Highest-Rated Ally . | . . Total Orders . | . . Ally Attacks . | . . Total Damage . | . . Kills . | . . Allies Corrupted . | . . Allies Melted . | . . Intel | -11 -10 ------- Run | Yrd Mat Active Infowar (turns) 189 | . 189 Seismic 189 | . 189 Robot Analysis Total . | . . Derelict Logs Recovered . | . . Drone Launches . | . . Drone Recoveries . | . . Exploration | -11 -10 ------------- Run | Yrd Mat Turns Passed 340 | 98 242 Spaces Moved 201 | 101 100 Core 44 | 44 . Treads . | . . Legs 24 | . 24 Wheels 132 | 57 75 Hover . | . . Flight 1 | . 1 Fastest Speed 50 | 50 80 Average Speed 109 | 66 151 Slowest Speed 850 | 80 850 Overloaded Moves . | . . Propulsion Burnouts . | . . Robots Hopped . | . . Potential Cave-ins . | . . Cave-ins Triggered . | . . Exploration Rate (%) 12 | 9 15 Regions Visited 1 Branch Regions . Pre-discovered Areas . | . . Known Exits Taken . | . . Unknown Exits Taken 1 | 1 . Scrap Searched . | . . Spaces Dug . | . . Terrain Destroyed . | . . Melee . | . . Projectile . | . . AOE . | . . Terrain Rammed . | . . Walls Destroyed . | . . Machines Disabled . | . . Actions | -11 -10 --------- Run | Yrd Mat Total 268 | 119 149 Wait . | . . Move 200 | 100 100 Hop . | . . Pick Up 17 | 8 9 Fast Attach . | . . Attach 13 | 5 8 Detach . | . . Swap . | . . Drop . | . . Fire 38 | 6 32 Melee . | . . Ram . | . . Kick . | . . Crush . | . . Escape Stasis . | . . Rewire . | . . Trap . | . . Miscellaneous . | . . Route ------- -11/Scrapyard -10/Materials History --------- Turn | Location | Event 2 | -11/Scrapyard | Met Revision 17 65 | -11/Scrapyard | Discovered new exit (range 8) 99 | -11/Scrapyard | Entered Materials 233 | -10/Materials | Core integrity fell below 50% 275 | -10/Materials | Lost 6 parts (1p3n2w) 313 | -10/Materials | Build established: Mutant 328 | -10/Materials | Core integrity fell below 20% 341 | -10/Materials | Destroyed by G-34 Mercenary with Small Laser Last Messages --------------- Acquired Aluminum Leg. Acquired Corrupted Aluminum Leg. Acquired Aluminum Leg. EM Pulse Gun destroyed. Acquired 10 matter. G-34 Mercenary destroyed. You may prefer to play using a different font style. Try some of the others via the option menu's second option. Aluminum Leg destroyed. S-10 Pest destroyed. Sml. Laser destroyed. Flying robots can pass through spaces occupied by others, even hostile robots. Different forms of propulsion may not be used simultaneously, Aluminum Leg automatically deactivated. S-10 Pest destroyed. Acquired 10 matter. [Achievement: First Step to Greatness] Map ----- +----------------------------------------------------+ | ??????????????????????????????????????????????? | | ????????????#??????????###+##?????????????????? | | ???????????? ?????????? ??????????????????? | | ???????????? ?????????? ??????????????????? | | ???????????? ?????????? ??????????????????? | | ???????????# #?????????# #??????????????????? | | ???????????# #########?# #??????????????????? | | ???????????# # #?# #??????????????????? | | ???????????# # "T" #?# #??????????????????? | | ???????????# # #?# #??????????????????? | | ???????????# # #?#=% #??????????????????? | | ??????#+#??# # #?#% #??????????????????? | | ??????# #### ##+######## #??????????????????? | | ??????# % #??????????????????? | | ??????# ####+########### #??????????????????? | | ??????# ## #????# #?? ? ????????????? | | ####### ## """ #????# #?""" ?????????????? | | # ## ## """"" #????# #?"T"??????????????? | | # # # """"" #????# # " ???????????????? | | # # + """"" #????# # ????????????????? | | # # # """ #????# + ?????????????????? | | # + # #????# #??????????????????? | | # " # # #????# *%#??????????????????? | | # T # # #???##g%s##?????????????????? | | # " # #####+######## =%[ #?????????????????? | | # # @ T #?????????????????? | | ###### [ "" #?????????????????? | | ?????# #?????????????????? | | ?????# ###+########## #?????????????????? | | ?????# #????????????### ###?????????????????? | | ?????# #??????????????# #???????????????????? | | ?????# #??????????????# #???????????????????? | | ?????#####??????????????# #???????????????????? | | ????????????????????????# #???????????????????? | | ????????????????????????# #???????????????????? | | ???????????????????????? ???????????????????? | | ???????????????????????? ???????????????????? | | ???????????????????????? ? ???????????????????? | | ????????????????????????#?????????????????????? | | ??????????????????????????????????????????????? | | ??????????????????????????????????????????????? | | ??????????????????????????????????????????????? | | | | | | | | | | | | | | | | | +----------------------------------------------------+ Best States ------------- Heat Dissipation 25 Energy Generation 10 Energy Capacity 125 Matter Stores 300 Matter Capacity 300 Sight Range 16 Terrain Scan Density 10 Evasion (%) 50 Item Schematics ----------------- None Robot Schematics ------------------ None Fabricated ------------ Nothing Repaired ---------- Nothing Alien Tech Used ----------------- None Achievements -------------- First Step to Greatness One Hack Too Far Storm Trooper Uninvited Guest Challenges ------------ None Game ------ Seed PersonalMappingShielding Manual? 0 Play Time 00:21:12 Cumulative 0.3 hours Start 2025.06.27 @ 19:05:54 End 2025.06.27 @ 19:34:06 Sessions 1 Manual Loads 0 Difficulty Rogue Special Mode None Game No. 1 Rogue 1 Adventurer 0 Explorer 0 Win Type - Total 0 Types 0/0/0/0/0/0/0/0/0/0 Lore% 0 Gallery% 0 Achievement% 1 Wizard Run 0 Options --------- Layout 1 ASCII 0 Keyboard 0 Movement Arrows Keybinds 0 Fullscreen 1 Font 24/Smallcaps Map View 50x35 Zoom Use 0% Tactical HUD 0 Map Filters NONE Filters NONE Steam 1 RUN: 863a1ae1-9ad7-4cc3-bd51-14f095901d7c